lending/lending_fUSD_20241025
["ID","MTS","AMOUNT","RATE_DAILY","PERIOD"]
[340794944,1729842641473,-150.0,0.0004137,2]
[340794945,1729842641482,-150.0,0.0004137,2]
[340794946,1729842641492,-150.0,0.0004137,2]
[340794947,1729842641502,-150.0,0.0004137,2]
[340794948,1729842641512,-150.0,0.0004137,2]
[340794949,1729842641522,-150.0,0.0004137,2]
[340794950,1729842641531,-150.0,0.0004137,2]
[340794951,1729842641541,-150.0,0.0004137,2]
[340794952,1729842641551,-150.0,0.0004137,2]
[340794953,1729842641561,-150.0,0.0004137,2]
[340794954,1729842641571,-150.0,0.0004137,2]
[340794955,1729842641580,-150.0,0.0004137,2]
[340794956,1729842641590,-150.0,0.0004137,2]
[340794957,1729842641600,-311.48,0.0004137,2]
[340794958,1729842641610,-150.0,0.00041422,2]
[340794959,1729842641620,-6827.82,0.00041436,7]
[340794960,1729842641630,-150.0,0.0004155,2]
[340794961,1729842641640,-11526.0,0.000416,5]
[340794962,1729842641650,-1000.0,0.00041605,2]
[340794963,1729842641659,-624.59,0.00041736,120]
[340794964,1729842641669,-150.0,0.00041824,2]
[340794965,1729842641678,-150.0,0.00041842,2]
[340794966,1729842641688,-200.0,0.000419,120]
[340794967,1729842641697,-150.0,0.00041902,2]
[340794968,1729842641707,-150.0,0.00041915,2]
[340794969,1729842641716,-150.0,0.00041918,2]
[340794970,1729842641726,-150.0,0.00041929,2]
[340794971,1729842641736,-7528.4,0.00042,120]
[340794972,1729842641746,-230.0,0.00042,30]
[340794973,1729842641755,-150.0,0.00042024,2]
[340794974,1729842641768,-150.0,0.0004204,2]
[340794975,1729842641777,-150.0,0.00042042,2]
[340794976,1729842641787,-59573.28,0.00042043,7]
[340794977,1729842641798,-2995.64,0.00042043,7]
[340794978,1729842641807,-150.0,0.00042084,2]
[340794979,1729842641817,-150.0,0.00042244,2]
[340794980,1729842641826,-587.18,0.00042269,2]
[340794981,1729842641836,-150.0,0.00042357,2]
[340794982,1729842641845,-156.06,0.00042374,2]
[340794983,1729842641855,-150.0,0.00042422,7]
[340794984,1729842641865,-150.0,0.00042431,2]
[340794985,1729842641874,-150.0,0.00042435,2]
[340794986,1729842641885,-1215.71279228,0.00042456,7]
[340794987,1729842641896,-150.0,0.00042474,2]
[340794988,1729842641905,-150.0,0.00042484,7]
[340794989,1729842641916,-7270.27864356,0.000425,120]
[340794990,1729842641925,-300.44109385,0.00042525,14]
[340794991,1729842641935,-150.0,0.00042526,2]
[340794992,1729842641944,-150.0,0.00042537,7]
[340794993,1729842641954,-562.69236505,0.00042539,2]
[340794994,1729842641963,-150.0,0.00042541,2]
[340794995,1729842641973,-150.0,0.00042549,2]
[340794996,1729842641982,-150.0,0.00042555,2]
[340794997,1729842641992,-150.0,0.00042555,2]
[340794998,1729842642001,-150.0,0.00042558,2]
[340794999,1729842642012,-150.0,0.00042558,2]
[340795000,1729842642022,-150.0,0.00042559,2]
[340795001,1729842642031,-150.0,0.00042561,2]
[340795002,1729842642041,-150.0,0.00042562,2]
[340795003,1729842642050,-150.0,0.00042577,2]
[340795004,1729842642060,-150.0,0.0004258,2]
[340795005,1729842642069,-150.0,0.00042584,2]
[340795006,1729842642079,-150.0,0.0004259,2]
[340795007,1729842642089,-150.0,0.00042593,7]
[340795008,1729842642098,-150.0,0.00042593,2]
[340795009,1729842642108,-150.0,0.00042597,2]
[340795010,1729842642117,-302.04,0.000426,30]
[340795011,1729842642128,-150.0,0.00042605,2]
[340795012,1729842642137,-152.18697544,0.00042607,2]
[340795013,1729842642146,-1965.45470668,0.00042608,8]
[340795014,1729842642155,-150.0,0.00042609,2]
[340795015,1729842642165,-150.0,0.00042611,2]
[340795016,1729842642174,-150.0,0.00042612,2]
[340795017,1729842642184,-1945.7714397,0.00042625,2]
[340795018,1729842642193,-151.0,0.00042625,2]
[340795019,1729842642202,-4234.96933686,0.00042625,2]
[340795020,1729842642305,-151.40920183,0.00042625,2]
[340795021,1729842642316,-1746.269999,0.00042625,2]
[340795022,1729842642325,-78984.30967439,0.00042625,2]
[340795023,1729842642334,-156.66,0.00042639,2]
[340795024,1729842642344,-150.0,0.00042641,2]
[340795025,1729842642353,-150.0,0.00042644,2]
[340795026,1729842642363,-150.0,0.00042646,2]
[340795027,1729842642373,-150.0,0.00042659,2]
[340795028,1729842642382,-150.0,0.00042659,2]
[340795029,1729842642391,-150.0,0.00042662,2]
[340795030,1729842642400,-150.0,0.00042671,2]
[340795031,1729842642410,-150.0,0.00042672,2]
[340795032,1729842642419,-150.0,0.00042675,2]
[340795033,1729842642429,-150.0,0.00042681,2]
[340795034,1729842642438,-150.0,0.00042683,2]
[340795035,1729842642449,-150.0,0.00042687,2]
[340795036,1729842642459,-1965.45470668,0.0004269,9]
[340795037,1729842642468,-8931.14,0.0004269,7]
[340795038,1729842642478,-150.0,0.00042693,2]
[340795039,1729842642487,-150.0,0.00042697,2]
[340795040,1729842642498,-150.0,0.000427,52]
[340795041,1729842642509,-2000.0,0.000427,52]
[340795042,1729842642519,-502.955184,0.000427,52]
[340795043,1729842642529,-1002.53074215,0.000427,18]
[340795044,1729842642541,-1965.45470668,0.000427,9]
[340795045,1729842642550,-450.0,0.00042704,30]
[340795046,1729842642560,-150.0,0.00042707,2]
[340795047,1729842642570,-150.0,0.00042707,2]
[340795048,1729842642579,-150.0,0.00042709,2]
[340795049,1729842642589,-2023.641477,0.0004271,52]
[340795050,1729842642599,-150.0,0.00042715,2]
[340795051,1729842642608,-150.0,0.00042718,2]
[340795052,1729842642617,-150.0,0.00042721,2]
[340795053,1729842642626,-150.0,0.00042722,2]
[340795054,1729842642636,-150.0,0.00042727,2]
[340795055,1729842642646,-150.0,0.00042727,2]
[340795056,1729842642655,-150.0,0.00042731,2]
[340795057,1729842642665,-150.0,0.00042732,2]
[340795058,1729842642675,-159.27874721,0.00042741,7]
[340795059,1729842642685,-150.0,0.00042741,2]
[340795060,1729842642695,-150.0,0.00042744,2]
[340795061,1729842642706,-150.0,0.00042744,2]
[340795062,1729842642719,-150.0,0.00042747,2]
[340795063,1729842642729,-150.0,0.00042755,2]
[340795064,1729842642743,-150.0,0.00042757,2]
[340795065,1729842642753,-150.0,0.00042759,2]
[340795066,1729842642766,-150.0,0.00042764,2]
[340795067,1729842642777,-150.0,0.00042769,2]
[340795068,1729842642787,-150.0,0.00042777,2]
[340795069,1729842642797,-150.0,0.00042779,2]
[340795070,1729842642808,-150.0,0.00042782,2]
[340795071,1729842642817,-150.0,0.00042784,2]
[340795072,1729842642827,-150.0,0.00042789,2]
[340795073,1729842642839,-150.0,0.00042792,2]
[340795074,1729842642850,-227.46258074,0.00042793,2]
[340795075,1729842642860,-150.0,0.00042794,2]
[340795076,1729842642870,-190.0,0.000428,29]
[340795077,1729842642880,-627.52,0.000428,2]
[340795078,1729842642891,-150.0,0.00042801,2]
[340795079,1729842642901,-150.0,0.00042801,2]
[340795080,1729842642910,-150.0,0.00042801,2]
[340795081,1729842642922,-150.0,0.00042808,2]
[340795082,1729842642933,-1965.45470668,0.00042809,9]
[340795083,1729842642943,-5896.36412004,0.0004281,9]
[340795084,1729842642952,-150.0,0.00042811,2]
[340795085,1729842642962,-150.0,0.00042818,2]
[340795086,1729842642972,-150.0,0.00042818,2]
[340795087,1729842642982,-4520.18046212,0.00042819,30]
[340795088,1729842642992,-4989.05,0.0004282,30]
[340795089,1729842643002,-3000.0,0.0004282,30]
[340795090,1729842643014,-1000.0,0.00042821,30]
[340795091,1729842643024,-150.0,0.0004283,2]
[340795092,1729842643033,-500.0,0.00042834,30]
[340795093,1729842643043,-296.68481619,0.00042834,30]
[340795094,1729842643053,-161.0,0.00042835,2]
[340795095,1729842643063,-161.41471332,0.00042864,28]
[340795096,1729842643073,-2271.1006368,0.00042893,2]
[340795097,1729842643083,-12220.8767618,0.00042893,2]
[340795098,1729842643093,-3930.90941336,0.00042922,9]
[340795099,1729842643103,-7861.81882672,0.00042932,9]
[340795100,1729842643112,-5030.9973491,0.00042932,2]
[340795101,1729842643122,-14707.6149035,0.00042942,2]
[340795102,1729842643131,-654.5570017,0.00042942,2]
[340795103,1729842643141,-1965.45470668,0.00042951,9]
[340795104,1729842643150,-11792.7282401,0.00042961,9]
[340795106,1729842643160,-180.3877252,0.00042961,2]
[340795108,1729842643169,-2221.8944179,0.00042961,2]
[340795109,1729842643178,-154.6,0.0004298,2]
[340795110,1729842643188,-5896.36412004,0.0004299,9]
[340795111,1729842643198,-10000.0,0.00043,2]
[340795112,1729842643208,-15538.57,0.00043361,7]
[340795113,1729842643218,-152.0,0.00043459,5]
[340795114,1729842643227,-1965.45470668,0.00043507,9]
[340795115,1729842643237,-5548.81160424,0.00043517,15]
[340795116,1729842643247,-1965.45470668,0.00043826,9]
[340795118,1729842643257,-425.84,0.00043836,2]
[340795119,1729842643270,-305.71,0.00043836,2]
[340795120,1729842643280,-430.25,0.00043836,2]
[340795121,1729842643290,-378.45,0.00043836,2]
[340795122,1729842643299,-449.19,0.00043836,2]
[340795123,1729842643308,-430.25,0.00043836,2]
[340795124,1729842643318,-430.25,0.00043836,2]
[340795126,1729842643329,-430.25,0.00043836,2]
[340795127,1729842643339,-427.67,0.00043836,2]
[340795129,1729842643349,-35191.1696564,0.00043836,21]
[340795130,1729842643358,-1965.45470668,0.00043837,9]
[340795131,1729842643367,-500.0,0.00043847,16]
[340795132,1729842643377,-500.0,0.00043847,16]
[340795133,1729842643386,-500.0,0.00043847,16]
[340795134,1729842643396,-500.0,0.00043847,16]
[340795135,1729842643405,-500.0,0.00043847,16]
[340795136,1729842643415,-153.613354,0.00043941,120]
[340795137,1729842643425,-1848.40087568,0.00043988,120]
[340795138,1729842643435,-7861.81882672,0.0004399,9]
[340795139,1729842643444,-562.69236504,0.00043993,2]
[340795140,1729842643457,-9803.08873148,0.00044,30]
[340795141,1729842643466,-229.0,0.00044,60]
[340795142,1729842643476,-502.955184,0.00044,57]
[340795143,1729842643485,-20843.9,0.00044087,7]
[340795144,1729842643495,-217.0,0.00044121,2]
[340795145,1729842643504,-156.66,0.00044178,2]
[340795146,1729842643516,-3930.90941336,0.0004419,9]
[340795147,1729842643525,-8851.20018141,0.000442,60]
[340795148,1729842643535,-859.8805014,0.000445,2]
[340795149,1729842643545,-587.18,0.00044533,2]
[340795150,1729842643554,-1124.1988,0.00044545,2]
[340795151,1729842643564,-2005.0977,0.00044545,2]
[340795152,1729842643573,-2000.0,0.00044545,2]
[340795153,1729842643583,-2000.0,0.00044545,2]
[340795154,1729842643592,-336.67,0.00044658,2]
[340795155,1729842643601,-528.79482724,0.00044769,30]
[340795156,1729842643610,-139006.77037591,0.0004488,120]
[340795157,1729842643620,-160.81910108,0.000449,20]
[340795158,1729842643629,-1882.56,0.000449,7]
[340795159,1729842643639,-180.3877252,0.00044969,2]
[340795160,1729842643648,-1823.1095092,0.00044969,2]
[340795161,1729842643657,-12067.8968237,0.00044969,2]
[340795162,1729842643667,-539.5573564,0.00044969,2]
[340795163,1729842643677,-4147.0973847,0.00044969,2]
[340795164,1729842643687,-1872.0891421,0.00044969,2]
[340795165,1729842643696,-10073.7811097,0.00044969,2]
[340795167,1729842643705,-154.6,0.0004499,2]
[340795169,1729842643714,-500.0,0.00044999,2]
[340795170,1729842643724,-251.48793739,0.00045,30]
[340795172,1729842643734,-221473.61549252,0.00045,60]
[340795173,1729842643765,-558.37766213,0.00045,60]
[340795174,1729842643786,-3483.89926409,0.00045,60]
[340795175,1729842643797,-5038.76056,0.00045,60]
[340795176,1729842643813,-150.0,0.00042687,2]
[340795177,1729842643824,-3652.0,0.00045,60]
[340795178,1729842644259,-556.43678428,0.00025659,2]
[340795179,1729842644270,-150.0,0.00042546,2]
[340795180,1729842644281,-150.0,0.00042551,2]
[340795181,1729842644292,-150.0,0.00042552,2]
[340795182,1729842644301,-150.0,0.00042562,2]
[340795183,1729842644311,-150.0,0.00042562,2]
[340795184,1729842644321,-150.0,0.00042565,2]
[340795185,1729842644331,-150.0,0.00042569,2]
[340795186,1729842644340,-150.0,0.00042572,2]
[340795187,1729842644350,-150.0,0.00042576,2]
[340795188,1729842644359,-150.0,0.00042578,2]
[340795189,1729842644368,-150.0,0.00042579,2]
[340795190,1729842644378,-150.0,0.00042584,2]
[340795191,1729842644388,-150.0,0.00042589,2]
[340795192,1729842644397,-150.0,0.00042594,2]
[340795193,1729842644407,-150.0,0.00042598,2]
[340795194,1729842644418,-150.0,0.00042599,2]
[340795195,1729842644428,-811.700719,0.000426,39]
[340795196,1729842644438,-150.0,0.000426,2]
[340795197,1729842644448,-150.0,0.00042602,2]
[340795198,1729842644459,-150.0,0.00042602,2]
[340795199,1729842644469,-150.0,0.00042603,2]
[340795200,1729842644478,-150.0,0.00042603,2]
[340795201,1729842644487,-150.0,0.00042605,2]
[340795202,1729842644498,-150.0,0.00042608,2]
[340795203,1729842644507,-92.022763,0.00042613,2]
[340795204,1729842644559,-150.0,0.00042606,2]
[340795205,1729842644569,-150.0,0.00042607,2]
[340795206,1729842644579,-57.977237,0.00042613,2]
[340795207,1729842644588,-150.0,0.00042613,2]
[340795208,1729842644598,-150.0,0.00042615,2]
[340795209,1729842644608,-150.0,0.0004262,2]
[340795210,1729842644617,-150.0,0.00042621,2]
[340795211,1729842644627,-150.0,0.00042623,2]
[340795212,1729842644640,-150.0,0.00042624,2]
[340795213,1729842644651,-90.987763,0.00042626,2]
[340795214,1729842644672,-150.0,0.00042624,2]
[340795215,1729842644682,-59.012237,0.00042626,2]
[340795216,1729842644691,-150.0,0.00042628,2]
[340795217,1729842644701,-150.0,0.00042632,2]
[340795218,1729842644711,-150.0,0.00042638,2]
[340795219,1729842644721,-150.0,0.0004264,2]
[340795220,1729842644736,-150.0,0.00042643,2]
[340795221,1729842644750,-150.0,0.00042646,2]
[340795222,1729842644760,-150.0,0.00042648,2]
[340795223,1729842644773,-150.0,0.00042648,2]
[340795224,1729842644782,-150.0,0.00042649,2]
[340795225,1729842644792,-150.0,0.00042658,2]
[340795226,1729842644802,-150.0,0.00042658,2]
[340795227,1729842644813,-150.0,0.00042659,2]
[340795228,1729842644822,-150.0,0.00042663,2]
[340795229,1729842644831,-150.0,0.00042664,2]
[340795230,1729842644841,-150.0,0.00042665,2]
[340795231,1729842644850,-150.0,0.00042671,2]
[340795232,1729842644859,-150.0,0.00042675,2]
[340795233,1729842644869,-150.0,0.00042679,2]
[340795234,1729842644879,-150.0,0.00042683,2]
[340795235,1729842644889,-150.0,0.00042688,2]
[340795236,1729842644898,-150.0,0.00042696,2]
[340795237,1729842644908,-150.0,0.00042697,2]
[340795238,1729842644918,-150.0,0.00042708,2]
[340795239,1729842644928,-150.0,0.00042711,2]
[340795240,1729842644938,-150.0,0.00042712,2]
[340795241,1729842644948,-150.0,0.00042717,2]
[340795242,1729842644958,-150.0,0.00042717,2]
[340795243,1729842644968,-150.0,0.0004272,2]
[340795244,1729842644978,-150.0,0.0004272,2]
[340795245,1729842644988,-150.0,0.00042729,2]
[340795246,1729842645004,-150.0,0.0004273,2]
[340795247,1729842645016,-150.0,0.0004274,2]
[340795248,1729842645026,-150.0,0.00042744,2]
[340795249,1729842645037,-150.0,0.00042746,2]
[340795250,1729842645047,-150.0,0.00042748,2]
[340795251,1729842645057,-150.0,0.00042755,2]
[340795252,1729842645068,-150.0,0.00042759,2]
[340795253,1729842645079,-150.0,0.0004276,2]
[340795254,1729842645089,-150.0,0.00042764,2]
[340795255,1729842645099,-150.0,0.0004277,2]
[340795256,1729842645109,-150.0,0.00042774,2]
[340795257,1729842645119,-150.0,0.00042776,2]
[340795258,1729842645129,-150.0,0.00042779,2]
[340795259,1729842645139,-150.0,0.0004278,2]
[340795260,1729842645150,-150.0,0.00042787,2]
[340795261,1729842645160,-150.0,0.00042791,2]
[340795262,1729842645172,-150.0,0.00042792,2]
[340795263,1729842645182,-150.0,0.00042794,2]
[340795264,1729842645195,-150.0,0.00042795,2]
[340795265,1729842645206,-150.0,0.00042804,2]
[340795266,1729842645217,-150.0,0.00042813,2]
[340795267,1729842645227,-150.0,0.00042813,2]
[340795268,1729842645238,-150.0,0.00042813,2]
[340795269,1729842645249,-150.0,0.00042814,2]
[340795270,1729842645259,-150.0,0.00042814,2]
[340795271,1729842645270,-150.0,0.00042815,2]
[340795272,1729842645281,-150.0,0.00042818,2]
[340795273,1729842645291,-38468.7291806,0.00045,60]
[340795274,1729842645321,150.0,0.0001726,2]
[340795275,1729842645362,150.204,0.00024102,2]
[340795279,1729842646418,-484.15775386,0.000449,7]
[340795280,1729842646431,-372.84224614,0.000449,7]
[340795281,1729842646441,-830.64902186,0.00045,60]
[340795304,1729842646972,-32700.00002493,0.00045,60]
[340795306,1729842646983,-48190.08143571,0.00045,60]
[340795308,1729842646992,-13338.95908206,0.00045,90]
[340795458,1729842684939,228.73,0.00015342,2]
[340795459,1729842685171,228.73,0.00021745,2]
[340795466,1729842869293,197.65,0.00019178,2]
[340795467,1729842891907,672.0,0.00015,2]
[340795468,1729842892610,605.0,0.00015,2]
[340795469,1729843081268,12000.0,0.00015,2]
[340795470,1729843308848,155.01,0.00015342,2]
[340795471,1729843512037,4570.281,0.00024374,2]
[340795472,1729843515351,1150.0,0.00024374,2]
[340795473,1729843525140,1068.19,0.00024374,2]
[340795483,1729843724726,250.0,0.0001,2]
[340795484,1729843725798,300.0,0.00012,2]
[340795485,1729843726876,350.0,0.00014,2]
[340795488,1729843814949,156.06,0.00015342,2]
[340795489,1729843815166,156.06,0.000247,2]
[340795490,1729843817556,1306.45,0.00025277,2]
[340795491,1729843821393,228.744,0.00025277,2]
[340795518,1729843831448,-780.0,0.00026038,2]
[340795519,1729843831458,-899.24800207,0.00026039,2]
[340795520,1729843831469,-500.0,0.00026039,2]
[340795521,1729843831480,-500.0,0.00026039,2]
[340795522,1729843831489,-379.06199793,0.00026039,2]
[340795523,1729843831607,-120.93800207,0.00026039,2]
[340795524,1729843831617,-500.0,0.00026039,2]
[340795525,1729843831735,-56.94199793,0.00026039,2]
[340795530,1729843837517,-443.05800207,0.00026039,2]
[340795531,1729843837526,-500.0,0.00026039,2]
[340795532,1729843837534,-500.0,0.00026039,2]
[340795533,1729843837544,-500.0,0.00026039,2]
[340795535,1729843837553,-500.0,0.00026039,2]
[340795536,1729843837562,-500.0,0.00026039,2]
[340795537,1729843837571,-500.0,0.00026039,2]
[340795538,1729843837581,-500.0,0.00026039,2]
[340795539,1729843837590,-500.0,0.00026039,2]
[340795540,1729843837599,-500.0,0.00026039,2]
[340795541,1729843837607,-561.0,0.0002604,2]
[340795542,1729843837617,-812.0,0.0002604,2]
[340795543,1729843837626,-449.0,0.0002604,2]
[340795544,1729843837635,-1247.0,0.0002604,2]
[340795545,1729843837644,-260.684,0.0002604,2]
[340795546,1729843837653,-937.0,0.0002604,2]
[340795547,1729843837662,-555.0,0.0002604,2]
[340795548,1729843837672,-3362.0,0.0002604,2]
[340795549,1729843837681,-1912.0,0.0002604,2]
[340795550,1729843837691,-809.0,0.0002604,2]
[340795551,1729843837701,-228.73,0.00028147,2]
[340795552,1729843837710,-540.9,0.0002904,2]
[340795553,1729843837719,-251.921,0.0002904,2]
[340795554,1729843837728,-478.756,0.0002904,2]
[340795555,1729843837737,-1016.48211701,0.0002904,2]
[340795556,1729843837749,-1164.86088299,0.0002904,2]
[340795557,1729843837758,-1398.819,0.0002904,2]
[340795558,1729843837769,-155.01,0.0003272,2]
[340795559,1729843837778,-156.06,0.00034057,2]
[340795560,1729843837787,-3819.98,0.00034549,2]
[340795561,1729843837796,-228.73,0.00034549,2]
[340795562,1729843837805,-43223.0,0.0004,2]
[340795563,1729843837814,-228.73,0.00040952,2]
[340795564,1729843837824,-331.68554064,0.000411,2]
[340795565,1729843837834,-182.0,0.000411,2]
[340795566,1729843837843,-3083.31,0.00042,2]
[340795567,1729843837853,-375.39,0.00042067,2]
[340795568,1729843837862,-170.0,0.000426,10]
[340795569,1729843837871,-2168.02754397,0.0004264,30]
[340795570,1729843837880,-1060.222,0.0004272,2]
[340795571,1729843837889,-391.51,0.000428,2]
[340795572,1729843837898,-150.0,0.00043211,2]
[340795573,1729843837908,-156.06,0.00043414,2]
[340795574,1729843837917,-416.39,0.00043426,120]
[340795575,1729843837927,-163.61,0.00043426,2]
[340795576,1729843837936,-250.0,0.00043441,2]
[340795577,1729843837947,-3988.91,0.00043456,2]
[340795579,1729843837957,-200.0,0.00043485,2]
[340795580,1729843837966,-250.0,0.00043486,120]
[340795581,1729843837975,-200.0,0.000435,2]
[340795582,1729843837986,-356.56,0.00043515,2]
[340795583,1729843837995,-200.0,0.00043527,2]
[340795584,1729843838005,-156.66,0.00043563,2]
[340795585,1729843838017,-500.0,0.00043566,2]
[340795586,1729843838030,-1153.23,0.00043673,2]
[340795587,1729843838039,-611.01,0.00043698,10]
[340795588,1729843838048,-509.18,0.00043698,10]
[340795589,1729843838058,-424.32,0.00043698,10]
[340795590,1729843838067,-200.0,0.00043703,2]
[340795591,1729843838077,-23900.0,0.00043708,2]
[340795592,1729843838086,-364.6,0.00043723,2]
[340795593,1729843838096,-217.0,0.00043736,2]
[340795594,1729843838105,-1017.91,0.00043761,2]
[340795596,1729843838114,-500.0,0.00043847,16]
[340795598,1729843838123,-500.0,0.00043847,16]
[340795600,1729843838133,-500.0,0.00043847,16]
[340795602,1729843838142,-351.90770229,0.00043847,16]
[340795604,1729843838151,-696.96,0.00043849,2]
[340795605,1729843838161,-250.0,0.00043865,2]
[340795607,1729843838170,-825.0254152,0.000441,10]
[340795608,1729843838180,-155.0,0.00044233,120]
[340795609,1729843838189,-800.0,0.0004428,2]
[340795610,1729843838201,-181.64,0.0004428,2]
[340795611,1729843838216,-375.39,0.00044331,2]
[340795612,1729843838230,-735.736,0.00044765,71]
[340795613,1729843838242,-150.85,0.00044766,2]
[340795614,1729843838255,-2000.0,0.00044775,2]
[340795615,1729843838272,-88977.88887412,0.000448,120]
[340795616,1729843838295,-9621.04005651,0.000448,120]
[340795617,1729843838309,-150.85,0.00044822,2]
[340795618,1729843838322,-150.85,0.00044878,2]
[340795619,1729843838336,-1174.54,0.000449,7]
[340795620,1729843838348,-150.85,0.00044934,2]
[340795621,1729843838360,-150.85,0.0004499,2]
[340795622,1729843838372,-500.0,0.00044999,2]
[340795623,1729843838386,-16661.04091794,0.00045,90]
[340795624,1729843838398,-720.55,0.00045,2]
[340795625,1729843838410,-600.0,0.00045,120]
[340795626,1729843838420,-150.0,0.00045,85]
[340795627,1729843838432,-261.0,0.00045,30]
[340795628,1729843838445,-261.0,0.00045,30]
[340795629,1729843838457,-261.0,0.00045,30]
[340795630,1729843838470,-261.0,0.00045,30]
[340795631,1729843838484,-261.0,0.00045,30]
[340795632,1729843838497,-261.0,0.00045,30]
[340795633,1729843838509,-261.0,0.00045,30]
[340795634,1729843838524,-261.0,0.00045,30]
[340795635,1729843838534,-261.0,0.00045,30]
[340795636,1729843838546,-261.0,0.00045,30]
[340795637,1729843838560,-261.0,0.00045,30]
[340795638,1729843838573,-272.63517906,0.00045,30]
[340795639,1729843838584,-10000.0,0.00045,2]
[340795640,1729843838597,-563.2238008,0.00045015,2]
[340795641,1729843838609,-6298.2498286,0.00045015,2]
[340795642,1729843838623,-3970.5781963,0.00045046,2]
[340795643,1729843838635,-881.4102924,0.00045046,2]
[340795644,1729843838647,-298.2300031,0.00045077,2]
[340795645,1729843838661,-166.0,0.000456,120]
[340795646,1729843838673,-593.12,0.00046,120]
[340795647,1729843838685,-152.0,0.0004652,6]
[340795648,1729843838696,-375.39,0.00046595,2]
[340795649,1729843838708,-182.1997964,0.000466,2]
[340795650,1729843838720,-2492.9554,0.000467,2]
[340795651,1729843838732,-2774.40580212,0.000467,15]
[340795652,1729843838744,-280.41168764,0.000467,18]
[340795653,1729843838756,-154.6,0.0004679,2]
[340795654,1729843838770,-564.87684362,0.00046797,60]
[340795655,1729843838783,-550.90697527,0.00046799,31]
[340795656,1729843838795,-589604.79845971,0.000468,120]
[340795657,1729843838806,-487.66671648,0.000469,2]
[340795658,1729843838818,-500.0,0.00047,120]
[340795659,1729843838830,-789.12106651,0.00047,120]
[340795660,1729843838842,-978.78,0.000471,14]
[340795661,1729843838854,-228.73,0.00047354,2]
[340795662,1729843838866,-1000.0,0.00047739,2]
[340795663,1729843838879,-500.0,0.00048,120]
[340795664,1729843838891,-156.12516922,0.00048,120]
[340795665,1729843838904,-240.64560435,0.00048,120]
[340795666,1729843838916,-487.66671636,0.00048043,2]
[340795667,1729843838928,-501.2585666,0.00048073,2]
[340795668,1729843838940,-5612.5015212,0.00048073,2]
[340795669,1729843838955,-2774.40580212,0.00048106,15]
[340795670,1729843838967,-169.8056535,0.000487,33]
[340795671,1729843838980,-812.249,0.000487,120]
[340795672,1729843838992,-276.9271601,0.00048734,2]
[340795673,1729843839004,-3538.2648789,0.00048734,2]
[340795674,1729843839018,-785.4430582,0.00048734,2]
[340795675,1729843839029,-255.624317,0.00048767,2]
[340795676,1729843839042,-3105.9515614,0.00048767,2]
[340795677,1729843839053,-689.4758241,0.00048767,2]
[340795678,1729843839065,-439.2933324,0.00048767,2]
[340795679,1729843839077,-4926.7532138,0.00048767,2]
[340795680,1729843839089,-210.0,0.00048767,120]
[340795681,1729843839101,-154.6,0.0004879,2]
[340795682,1729843839113,-653.0,0.000488,7]